[Event "2022 Glenn Snow Memorial"]
[Site "Noblesville, Indiana, United States"]
[Date "2022.09.16"]
[Round "1.4"]
[White "Fishbein, Alexander"]
[Black "Abraham, John"]
[Result "1-0"]
[TimeControl "90:30"]
[WhiteTitle "GM"]
[WhiteElo "2507"]
[BlackElo "2039"]

1. e4 {[%clk 01:30:30]} {[%emt 00:01:23]} c6 {[%clk 01:28:40]} {[%emt
00:02:27]} 2. d3 {[%clk 01:30:19]} {[%emt 00:00:42]} d5 {[%clk 01:29:00]}
{[%emt 00:00:09]} 3. Nd2 {[%clk 01:30:35]} {[%emt 00:00:14]} e5 {[%clk
01:29:21]} {[%emt 00:00:09]} 4. Ngf3 {[%clk 01:30:59]} {[%emt 00:00:06]} Bd6
{[%clk 01:29:42]} {[%emt 00:00:09]} 5. g3 {[%clk 01:31:24]} {[%emt 00:00:05]}
Nf6 {[%clk 01:29:58]} {[%emt 00:00:13]} 6. Bg2 {[%clk 01:31:50]} {[%emt
00:00:04]} O-O {[%clk 01:29:48]} {[%emt 00:00:40]} 7. O-O {[%clk 01:32:17]}
{[%emt 00:00:04]} Bg4 {[%clk 01:28:48]} {[%emt 00:01:29]} 8. h3 {[%clk
01:31:38]} {[%emt 00:01:09]} Bxf3 {[%clk 01:24:29]} {[%emt 00:04:49]} 9. Bxf3
{[%clk 01:31:32]} {[%emt 00:00:33]} Nbd7 {[%clk 01:20:53]} {[%emt 00:04:08]} 10.
Re1 {[%clk 01:29:59]} {[%emt 00:02:04]} Qc7 {[%clk 01:18:37]} {[%emt 00:02:45]}
11. Bg2 {[%clk 01:26:32]} {[%emt 00:03:58]} Rfe8 {[%clk 01:17:37]} {[%emt
00:01:30]} 12. c3 {[%clk 01:22:49]} {[%emt 00:04:14]} Rad8 {[%clk 01:13:17]}
{[%emt 00:04:49]} 13. Qc2 {[%clk 01:21:14]} {[%emt 00:02:05]} Nb6 {[%clk
01:04:34]} {[%emt 00:09:12]} 14. Nf3 {[%clk 01:15:46]} {[%emt 00:05:59]} Nfd7
{[%clk 00:54:25]} {[%emt 00:10:39]} 15. b4 {[%clk 01:04:03]} {[%emt 00:12:13]}
dxe4 {[%clk 00:46:47]} {[%emt 00:08:07]} 16. Rxe4 {[%clk 01:00:51]} {[%emt
00:03:42]} Nf8 {[%clk 00:37:26]} {[%emt 00:09:51]} 17. Bg5 {[%clk 00:56:58]}
{[%emt 00:04:23]} f6 {[%clk 00:30:27]} {[%emt 00:07:29]} 18. Bd2 {[%clk
00:56:59]} {[%emt 00:00:28]} Qf7 {[%clk 00:28:02]} {[%emt 00:02:54]} 19. Rae1
{[%clk 00:55:20]} {[%emt 00:02:10]} Ng6 {[%clk 00:20:24]} {[%emt 00:08:08]} 20.
h4 {[%clk 00:54:03]} {[%emt 00:01:47]} Nd5 {[%clk 00:19:54]} {[%emt 00:01:00]}
21. h5 {[%clk 00:53:14]} {[%emt 00:01:19]} Nf8 {[%clk 00:19:31]} {[%emt
00:00:53]} 22. h6 {[%clk 00:53:11]} {[%emt 00:00:33]} g6 {[%clk 00:19:46]}
{[%emt 00:00:16]} 23. Bf1 {[%clk 00:42:36]} {[%emt 00:11:04]} Nd7 {[%clk
00:16:22]} {[%emt 00:03:54]} 24. Qb3 {[%clk 00:25:44]} {[%emt 00:17:22]} Nc7
{[%clk 00:11:16]} {[%emt 00:05:35]} 25. Qxf7+ {[%clk 00:25:01]} {[%emt
00:01:14]} Kxf7 {[%clk 00:11:40]} {[%emt 00:00:06]} 26. d4 {[%clk 00:24:31]}
{[%emt 00:01:00]} b5 {[%clk 00:11:17]} {[%emt 00:00:53]} 27. c4 {[%clk
00:22:52]} {[%emt 00:02:09]} bxc4 {[%clk 00:09:18]} {[%emt 00:02:28]} 28. Bxc4+
{[%clk 00:22:44]} {[%emt 00:00:38]} Kf8 {[%clk 00:09:35]} {[%emt 00:00:12]} 29.
dxe5 {[%clk 00:22:26]} {[%emt 00:00:48]} Nxe5 {[%clk 00:09:55]} {[%emt
00:00:10]} 30. Nxe5 {[%clk 00:22:36]} {[%emt 00:00:20]} Rxe5 {[%clk 00:08:18]}
{[%emt 00:02:07]} 31. Rxe5 {[%clk 00:22:13]} {[%emt 00:00:53]} Bxe5 {[%clk
00:08:27]} {[%emt 00:00:21]} 32. Be3 {[%clk 00:22:24]} {[%emt 00:00:19]} Nd5
{[%clk 00:08:29]} {[%emt 00:00:28]} 33. Bc5+ {[%clk 00:16:40]} {[%emt
00:06:14]} Bd6 {[%clk 00:05:50]} {[%emt 00:03:09]} 34. Re6 {[%clk 00:16:51]}
{[%emt 00:00:19]} Bxc5 {[%clk 00:06:07]} {[%emt 00:00:13]} 35. bxc5 {[%clk
00:17:18]} {[%emt 00:00:04]} Rc8 {[%clk 00:04:29]} {[%emt 00:02:06]} 36. Kf1
{[%clk 00:13:13]} {[%emt 00:04:36]} Rc7 {[%clk 00:03:35]} {[%emt 00:01:25]} 37.
Ke2 {[%clk 00:12:40]} {[%emt 00:01:03]} f5 {[%clk 00:02:22]} {[%emt 00:01:42]}
38. Kd3 {[%clk 00:12:18]} {[%emt 00:00:52]} Rd7 {[%clk 00:01:43]} {[%emt
00:01:09]} 39. Bxd5 {[%clk 00:12:16]} {[%emt 00:00:31]} cxd5 {[%clk 00:01:56]}
{[%emt 00:00:18]} 40. Kd4 {[%clk 00:12:18]} {[%emt 00:00:29]} Kf7 {[%clk
00:02:15]} {[%emt 00:00:11]} 41. Ra6 {[%clk 00:12:23]} {[%emt 00:00:25]} Kf8
{[%clk 00:01:37]} {[%emt 00:01:08]} 42. c6 {[%clk 00:12:25]} {[%emt 00:00:28]}
Rc7 {[%clk 00:02:01]} {[%emt 00:00:06]} 43. Kxd5 {[%clk 00:12:45]} {[%emt
00:00:11]} Ke7 {[%clk 00:02:26]} {[%emt 00:00:04]} 44. Ra3 {[%clk 00:13:01]}
{[%emt 00:00:14]} Kf6 {[%clk 00:02:24]} {[%emt 00:00:32]} 45. Kd6 {[%clk
00:13:18]} {[%emt 00:00:13]} Rxc6+ {[%clk 00:02:24]} {[%emt 00:00:29]} 46. Kxc6
{[%clk 00:13:44]} {[%emt 00:00:04]} Kg5 {[%clk 00:02:49]} {[%emt 00:00:05]} 47.
Rxa7 {[%clk 00:14:10]} {[%emt 00:00:04]} Kxh6 {[%clk 00:03:15]} {[%emt
00:00:04]} 48. Rb7 {[%clk 00:14:38]} {[%emt 00:00:03]} g5 {[%clk 00:03:39]}
{[%emt 00:00:06]} 49. a4 {[%clk 00:15:06]} {[%emt 00:00:03]} Kg6 {[%clk
00:04:06]} {[%emt 00:00:03]} 50. a5 {[%clk 00:15:33]} {[%emt 00:00:03]} Kh6
{[%clk 00:04:30]} {[%emt 00:00:04]} 51. a6 {[%clk 00:16:01]} {[%emt 00:00:04]}
Kg6 {[%clk 00:04:49]} {[%emt 00:00:10]} 52. a7 {[%clk 00:16:28]} {[%emt
00:00:03]} h6 {[%clk 00:05:15]} {[%emt 00:00:05]} 53. a8=Q {[%clk 00:16:54]}
{[%emt 00:00:04]} Kh5 {[%clk 00:05:38]} {[%emt 00:00:06]} 54. Qe8+ {[%clk
00:17:21]} {[%emt 00:00:04]} Kg4 {[%clk 00:06:01]} {[%emt 00:00:07]} 55. Qe2+
{[%clk 00:17:45]} {[%emt 00:00:06]} Kh3 {[%clk 00:06:24]} {[%emt 00:00:06]} 56.
Rb1 {[%clk 00:18:12]} {[%emt 00:00:04]} Kg2 {[%clk 00:06:40]} {[%emt 00:00:14]}
57. f4+ {[%clk 00:18:32]} {[%emt 00:00:11]} Kxg3 {[%clk 00:06:45]} {[%emt
00:00:25]} 58. Rg1+ {[%clk 00:18:52]} {[%emt 00:00:10]} Kxf4 {[%clk 00:07:04]}
{[%emt 00:00:11]} 59. Rf1+ {[%clk 00:19:20]} {[%emt 00:00:02]} Kg3 {[%clk
00:07:21]} {[%emt 00:00:12]} 60. Qf3+ {[%clk 00:19:42]} {[%emt 00:00:08]} 1-0

[Event "2022 Glenn Snow Memorial"]
[Site "Noblesville, Indiana, United States"]
[Date "2022.09.16"]
[Round "1.1"]
[White "Altucher, James"]
[Black "Moradiabadi, Elsha"]
[Result "0-1"]
[TimeControl "90:30"]
[BlackTitle "GM"]
[WhiteElo "2080"]
[BlackElo "2629"]

1. e4 {[%clk 01:30:59]} {[%emt 06:20:26]} c5 {[%clk 01:30:56]} {[%emt
00:00:05]} 2. Nc3 {[%clk 01:31:21]} {[%emt 00:00:08]} e6 {[%clk 01:31:24]}
{[%emt 00:00:02]} 3. f4 {[%clk 01:31:41]} {[%emt 00:00:10]} d5 {[%clk
01:31:50]} {[%emt 00:00:05]} 4. Bb5+ {[%clk 01:31:37]} {[%emt 00:00:34]} Bd7
{[%clk 01:32:19]} {[%emt 00:00:01]} 5. Bxd7+ {[%clk 01:28:54]} {[%emt
00:03:13]} Qxd7 {[%clk 01:32:28]} {[%emt 00:00:21]} 6. d3 {[%clk 01:29:08]}
{[%emt 00:00:16]} Nc6 {[%clk 01:31:06]} {[%emt 00:01:53]} 7. Nf3 {[%clk
01:29:32]} {[%emt 00:00:06]} Nf6 {[%clk 01:27:49]} {[%emt 00:03:46]} 8. e5
{[%clk 01:25:59]} {[%emt 00:04:03]} Ng8 {[%clk 01:28:03]} {[%emt 00:00:16]} 9.
O-O {[%clk 01:26:21]} {[%emt 00:00:08]} Nh6 {[%clk 01:28:27]} {[%emt 00:00:05]}
10. Ne2 {[%clk 01:24:44]} {[%emt 00:02:08]} Be7 {[%clk 01:28:36]} {[%emt
00:00:21]} 11. c3 {[%clk 01:24:05]} {[%emt 00:01:09]} Nf5 {[%clk 01:28:42]}
{[%emt 00:00:24]} 12. a3 {[%clk 01:18:53]} {[%emt 00:05:43]} a5 {[%clk
01:28:30]} {[%emt 00:00:41]} 13. a4 {[%clk 01:14:53]} {[%emt 00:04:30]} h5
{[%clk 01:28:46]} {[%emt 00:00:15]} 14. Kh1 {[%clk 01:12:53]} {[%emt 00:02:29]}
h4 {[%clk 01:28:27]} {[%emt 00:00:49]} 15. d4 {[%clk 01:11:10]} {[%emt
00:02:13]} Rc8 {[%clk 01:27:11]} {[%emt 00:01:47]} 16. Bd2 {[%clk 01:07:14]}
{[%emt 00:04:25]} b6 {[%clk 01:24:47]} {[%emt 00:02:54]} 17. Rg1 {[%clk
01:00:57]} {[%emt 00:06:47]} cxd4 {[%clk 01:21:01]} {[%emt 00:04:17]} 18. g4
{[%clk 00:56:12]} {[%emt 00:05:15]} hxg3 {[%clk 01:21:12]} {[%emt 00:00:20]} 19.
Nxg3 {[%clk 00:56:24]} {[%emt 00:00:17]} Nxg3+ {[%clk 01:21:13]} {[%emt
00:00:29]} 20. Rxg3 {[%clk 00:56:50]} {[%emt 00:00:05]} dxc3 {[%clk 01:21:39]}
{[%emt 00:00:04]} 21. Bxc3 {[%clk 00:56:14]} {[%emt 00:01:06]} g6 {[%clk
01:18:15]} {[%emt 00:03:54]} 22. Rg2 {[%clk 00:35:12]} {[%emt 00:21:31]} Bc5
{[%clk 01:18:25]} {[%emt 00:00:20]} 23. Ng5 {[%clk 00:32:40]} {[%emt 00:03:02]}
Ne7 {[%clk 01:18:28]} {[%emt 00:00:27]} 24. Rd2 {[%clk 00:27:26]} {[%emt
00:05:44]} Qc6 {[%clk 01:18:19]} {[%emt 00:00:39]} 25. Bd4 {[%clk 00:21:33]}
{[%emt 00:06:22]} Bxd4 {[%clk 01:16:10]} {[%emt 00:02:39]} 26. Rxd4 {[%clk
00:22:02]} {[%emt 00:00:02]} Qc2 {[%clk 01:16:29]} {[%emt 00:00:12]} 27. Rd2
{[%clk 00:21:01]} {[%emt 00:01:31]} Qxd1+ {[%clk 01:16:39]} {[%emt 00:00:20]}
28. Raxd1 {[%clk 00:21:29]} {[%emt 00:00:02]} Rh4 {[%clk 01:16:27]} {[%emt
00:00:41]} 29. Nf3 {[%clk 00:18:41]} {[%emt 00:03:19]} Rxf4 {[%clk 01:16:51]}
{[%emt 00:00:06]} 30. Nd4 {[%clk 00:19:01]} {[%emt 00:00:10]} Nf5 {[%clk
01:17:09]} {[%emt 00:00:11]} 0-1

[Event "2022 Glenn Snow Memorial"]
[Site "Noblesville, Indiana, United States"]
[Date "2022.09.16"]
[Round "1.6"]
[White "Padhye, Rohan"]
[Black "Carr, Jay A"]
[Result "1-0"]
[TimeControl "90:30"]
[WhiteElo "2222"]
[BlackElo "2026"]

1. e4 {[%clk 01:30:56]} {[%emt 00:00:03]} c5 {[%clk 01:30:03]} {[%emt
00:00:58]} 2. Nf3 {[%clk 01:31:17]} {[%emt 00:00:09]} e6 {[%clk 01:30:24]}
{[%emt 00:00:09]} 3. d4 {[%clk 01:31:32]} {[%emt 00:00:15]} cxd4 {[%clk
01:30:51]} {[%emt 00:00:04]} 4. Nxd4 {[%clk 01:31:51]} {[%emt 00:00:11]} Nc6
{[%clk 01:31:10]} {[%emt 00:00:10]} 5. Nc3 {[%clk 01:31:45]} {[%emt 00:00:35]}
Qc7 {[%clk 01:30:50]} {[%emt 00:00:50]} 6. g4 {[%clk 01:29:51]} {[%emt
00:02:25]} a6 {[%clk 01:30:45]} {[%emt 00:00:35]} 7. Be3 {[%clk 01:28:40]}
{[%emt 00:01:40]} b5 {[%clk 01:28:52]} {[%emt 00:02:25]} 8. Nxc6 {[%clk
01:28:30]} {[%emt 00:00:40]} dxc6 {[%clk 01:26:51]} {[%emt 00:02:30]} 9. Bg2
{[%clk 01:21:44]} {[%emt 00:07:17]} Bb4 {[%clk 01:20:07]} {[%emt 00:07:13]} 10.
Qd4 {[%clk 01:16:24]} {[%emt 00:05:49]} Be7 {[%clk 01:13:34]} {[%emt 00:07:05]}
11. e5 {[%clk 01:10:32]} {[%emt 00:06:21]} c5 {[%clk 01:08:37]} {[%emt
00:05:28]} 12. Qd3 {[%clk 01:05:44]} {[%emt 00:05:18]} Bb7 {[%clk 01:03:02]}
{[%emt 00:06:06]} 13. Bxb7 {[%clk 00:58:45]} {[%emt 00:07:27]} Qxb7 {[%clk
01:02:58]} {[%emt 00:00:35]} 14. Qe4 {[%clk 00:57:34]} {[%emt 00:01:39]} Qxe4
{[%clk 00:57:03]} {[%emt 00:06:26]} 15. Nxe4 {[%emt 00:04:52]} Rc8 {[%clk
00:51:58]} {[%emt 00:00:45]} 16. O-O-O {[%clk 00:50:12]} {[%emt 00:08:21]} Rc6
{[%clk 00:49:19]} {[%emt 00:03:09]} 17. g5 {[%clk 00:48:14]} {[%emt 00:02:27]}
c4 {[%clk 00:38:03]} {[%emt 00:11:46]} 18. f4 {[%clk 00:37:00]} {[%emt
00:11:44]} Bb4 {[%clk 00:31:44]} {[%emt 00:06:49]} 19. c3 {[%clk 00:36:47]}
{[%emt 00:00:45]} Ba5 {[%clk 00:29:18]} {[%emt 00:02:53]} 20. Nd6+ {[%clk
00:27:11]} {[%emt 00:10:08]} Kf8 {[%clk 00:27:50]} {[%emt 00:01:58]} 21. Nb7
{[%clk 00:26:36]} {[%emt 00:01:04]} Bc7 {[%clk 00:23:57]} {[%emt 00:04:23]} 22.
Nd8 {[%clk 00:21:45]} {[%emt 00:05:22]} 1-0